fUSD/lending_fUSD_20250512
["ID","MTS","AMOUNT","RATE_DAILY","PERIOD"]
[360832244,1747056639033,-400.0,0.0001393,2]
[360832245,1747056639042,-400.0,0.0001393,2]
[360832246,1747056639051,-400.0,0.0001393,2]
[360832247,1747056639060,-400.0,0.0001393,2]
[360832248,1747056639070,-150.0,0.0001393,2]
[360832249,1747056639079,-1954.09,0.0001393,2]
[360832250,1747056639092,-400.0,0.0001393,2]
[360832251,1747056639100,-2064.71,0.0001393,2]
[360832252,1747056639109,-1439.99,0.0001393,2]
[360832253,1747056639119,-400.0,0.0001393,2]
[360832254,1747056639128,-619.58,0.0001393,2]
[360832255,1747056639137,-204.27591533,0.0001393,2]
[360832256,1747056639147,-400.0,0.0001393,2]
[360832257,1747056639156,-400.0,0.0001393,2]
[360832258,1747056639166,-400.0,0.0001393,2]
[360832259,1747056639176,-400.0,0.0001393,2]
[360832260,1747056639185,-954.19344807,0.0001393,2]
[360832261,1747056639195,-400.0,0.00013931,2]
[360832262,1747056639205,-693.93,0.00013931,2]
[360832263,1747056639214,-693.93,0.00013931,2]
[360832264,1747056639224,-300.0,0.00013931,2]
[360832265,1747056639234,-400.0,0.00013931,2]
[360832266,1747056639244,-400.0,0.00013931,2]
[360832267,1747056639254,-400.0,0.00013931,2]
[360832268,1747056639274,-400.0,0.00013931,2]
[360832269,1747056639296,-400.0,0.00013931,2]
[360832270,1747056639307,-400.0,0.00013931,2]
[360832271,1747056639319,-400.0,0.00013931,2]
[360832272,1747056639333,-400.0,0.00013931,2]
[360832273,1747056639349,-400.0,0.00013931,2]
[360832274,1747056639361,-400.0,0.00013931,2]
[360832275,1747056639374,-400.0,0.00013931,2]
[360832276,1747056639386,-400.0,0.00013931,2]
[360832277,1747056639398,-400.0,0.00013931,2]
[360832278,1747056639410,-400.0,0.00013931,2]
[360832279,1747056639421,-400.0,0.00013931,2]
[360832280,1747056639432,-400.0,0.00013931,2]
[360832281,1747056639446,-400.0,0.00013931,2]
[360832282,1747056639458,-400.0,0.00013931,2]
[360832283,1747056639470,-400.0,0.00013931,2]
[360832284,1747056639482,-400.0,0.00013931,2]
[360832285,1747056639493,-400.0,0.00013931,2]
[360832286,1747056639506,-400.0,0.00013931,2]
[360832287,1747056639519,-400.0,0.00013931,2]
[360832288,1747056639530,-400.0,0.00013931,2]
[360832289,1747056639541,-400.0,0.00013931,2]
[360832290,1747056639552,-400.0,0.00013931,2]
[360832291,1747056639564,-429.12,0.00013931,2]
[360832292,1747056639576,-209.19362783,0.00013931,2]
[360832293,1747056639804,-203.77,0.00013931,2]
[360832294,1747056639816,-420.15511668,0.00013931,2]
[360832295,1747056639828,-514.21,0.00013931,2]
[360832296,1747056639849,-514.21,0.00013931,2]
[360832297,1747056639862,-400.0,0.00013931,2]
[360832298,1747056639874,-400.0,0.00013931,2]
[360832299,1747056639886,-430.7527962,0.00013931,2]
[360832300,1747056640100,-400.0,0.00013931,2]
[360832301,1747056640114,-400.0,0.00013931,2]
[360832302,1747056640124,-151.0,0.00013931,2]
[360832303,1747056640134,-400.0,0.00013931,2]
[360832304,1747056640145,-151.0,0.00013931,2]
[360832305,1747056640156,-151.0,0.00013931,2]
[360832306,1747056640166,-139357.67,0.00013931,2]
[360832307,1747056640178,-400.0,0.00013931,2]
[360832308,1747056640189,-400.0,0.00013931,2]
[360832309,1747056640199,-151.0,0.00013931,2]
[360832310,1747056640209,-176.222558,0.00013931,2]
[360832311,1747056640219,-400.0,0.00013931,2]
[360832312,1747056640230,-151.0,0.00013931,2]
[360832313,1747056640240,-400.0,0.00013931,2]
[360832314,1747056640250,-400.0,0.00013931,2]
[360832315,1747056640260,-400.0,0.00013931,2]
[360832316,1747056640270,-3478.31,0.00013931,2]
[360832317,1747056640280,-400.0,0.00013931,2]
[360832318,1747056640291,-400.0,0.00013931,2]
[360832319,1747056640302,-2830.05,0.00013931,2]
[360832320,1747056640313,-400.0,0.00013931,2]
[360832321,1747056640323,-400.0,0.00013931,2]
[360832322,1747056640338,-1539.85,0.00013931,2]
[360832323,1747056640349,-400.0,0.00013931,2]
[360832324,1747056640361,-400.0,0.00013931,2]
[360832325,1747056640372,-1200.26,0.00013931,2]
[360832326,1747056640383,-400.0,0.00013931,2]
[360832327,1747056640393,-400.0,0.00013931,2]
[360832328,1747056640404,-151.0,0.00013931,2]
[360832329,1747056640414,-400.0,0.00013931,2]
[360832330,1747056640426,-400.0,0.00013931,2]
[360832331,1747056640438,-400.0,0.00013931,2]
[360832332,1747056640450,-400.0,0.00013931,2]
[360832333,1747056640461,-400.0,0.00013931,2]
[360832334,1747056640472,-400.0,0.00013931,2]
[360832335,1747056640482,-400.0,0.00013931,2]
[360832336,1747056640493,-402.29,0.00013931,2]
[360832337,1747056640504,-5942.92,0.00013931,2]
[360832338,1747056640514,-400.0,0.00013931,2]
[360832339,1747056640525,-217.04991573,0.00013931,2]
[360832340,1747056640535,-400.0,0.00013931,2]
[360832341,1747056640545,-333.34,0.00013931,2]
[360832342,1747056640555,-400.0,0.00013931,2]
[360832343,1747056640564,-400.0,0.00013931,2]
[360832344,1747056640573,-400.0,0.00013931,2]
[360832345,1747056640585,-689.72,0.00013931,2]
[360832346,1747056640595,-689.72,0.00013931,2]
[360832347,1747056640605,-689.72,0.00013931,2]
[360832348,1747056640616,-2182.28,0.00013931,2]
[360832349,1747056640627,-461.54,0.00013931,2]
[360832350,1747056640637,-2182.28,0.00013931,2]
[360832351,1747056640647,-15626.81,0.00013931,2]
[360832352,1747056640658,-15626.81,0.00013931,2]
[360832353,1747056640668,-400.0,0.00013931,2]
[360832354,1747056640681,-151.0,0.00013931,2]
[360832355,1747056640690,-400.0,0.00013931,2]
[360832356,1747056640700,-151.0,0.00013931,2]
[360832357,1747056640710,-79069.07,0.00013931,2]
[360832358,1747056640721,-400.0,0.00013931,2]
[360832359,1747056640731,-400.0,0.00013931,2]
[360832360,1747056640741,-400.0,0.00013931,2]
[360832361,1747056640751,-411.11,0.00013931,2]
[360832362,1747056640762,-411.11,0.00013931,2]
[360832363,1747056640772,-400.0,0.00013931,2]
[360832364,1747056640783,-1954.09,0.00013931,2]
[360832365,1747056640793,-3811.4,0.00013931,2]
[360832366,1747056640803,-3811.4,0.00013931,2]
[360832367,1747056640813,-151.0,0.00013931,2]
[360832368,1747056640822,-400.0,0.00013931,2]
[360832369,1747056640835,-30122.0,0.00013931,2]
[360832370,1747056640845,-2064.71,0.00013931,2]
[360832371,1747056640854,-400.0,0.00013931,2]
[360832372,1747056640864,-400.0,0.00013931,2]
[360832373,1747056640873,-1439.99,0.00013931,2]
[360832374,1747056640882,-174.38,0.00013931,2]
[360832375,1747056640892,-400.0,0.00013931,2]
[360832376,1747056640902,-498.04,0.00013931,2]
[360832377,1747056640912,-400.0,0.00013931,2]
[360832378,1747056640922,-619.58,0.00013931,2]
[360832379,1747056640931,-400.0,0.00013931,2]
[360832380,1747056640941,-400.0,0.00013931,2]
[360832381,1747056640951,-400.0,0.00013931,2]
[360832382,1747056640960,-400.0,0.00013931,2]
[360832383,1747056640969,-402.14958601,0.00013932,2]
[360832384,1747056640979,-400.0,0.00013932,2]
[360832385,1747056640989,-400.0,0.00013932,2]
[360832386,1747056640998,-401.24857569,0.00013932,2]
[360832387,1747056641007,-400.0,0.00013932,2]
[360832388,1747056641017,-500.0,0.00013932,2]
[360832389,1747056641027,-400.0,0.00013932,2]
[360832390,1747056641036,-400.0,0.00013932,2]
[360832391,1747056641045,-420.47643476,0.00013932,2]
[360832392,1747056641055,-400.0,0.00013932,2]
[360832394,1747056641064,-400.0,0.00013932,2]
[360832395,1747056641073,-151.0,0.00013932,2]
[360832396,1747056641086,-254.95535535,0.00013932,2]
[360832397,1747056641096,-151.0,0.00013932,2]
[360832398,1747056641106,-151.0,0.00013932,2]
[360832399,1747056641116,-426.30222849,0.00013932,2]
[360832400,1747056641125,-400.0,0.00013932,2]
[360832401,1747056641135,-400.0,0.00013932,2]
[360832402,1747056641145,-400.0,0.00013932,2]
[360832403,1747056641155,-400.0,0.00013932,2]
[360832404,1747056641164,-400.0,0.00013932,2]
[360832405,1747056641174,-400.0,0.00013932,2]
[360832406,1747056641185,-151.0,0.00013932,2]
[360832407,1747056641195,-152.359662,0.00013932,2]
[360832409,1747056641205,-151.0,0.00013932,2]
[360832410,1747056641214,-470.6414795,0.00013932,2]
[360832411,1747056641224,-153.048806,0.00013932,2]
[360832412,1747056641236,-326.19,0.00013932,2]
[360832413,1747056641247,-400.0,0.00013932,2]
[360832414,1747056641256,-400.0,0.00013932,2]
[360832415,1747056641266,-512.02757096,0.00013932,2]
[360832416,1747056641276,-405.35246688,0.00013932,2]
[360832418,1747056641285,-400.0,0.00013932,2]
[360832419,1747056641294,-154.775416,0.00013932,2]
[360832420,1747056641304,-400.0,0.00013932,2]
[360832421,1747056641313,-444.65,0.00013932,2]
[360832422,1747056641323,-409.0,0.00013932,2]
[360832423,1747056641336,-433.01395692,0.00013932,2]
[360832424,1747056641346,-565.37,0.00013932,2]
[360832425,1747056641356,-400.0,0.00013932,2]
[360832426,1747056641366,-400.0,0.00013932,2]
[360832427,1747056641376,-410.51,0.00013932,2]
[360832428,1747056641386,-984.47,0.00013932,2]
[360832429,1747056641395,-400.0,0.00013932,2]
[360832430,1747056641405,-400.0,0.00013932,2]
[360832431,1747056641415,-151.0,0.00013932,2]
[360832432,1747056641424,-1497.79,0.00013932,2]
[360832433,1747056641433,-400.0,0.00013932,2]
[360832434,1747056641443,-473.8328856,0.00013932,2]
[360832435,1747056641453,-400.0,0.00013932,2]
[360832436,1747056641462,-400.0,0.00013932,2]
[360832437,1747056641472,-400.0,0.00013932,2]
[360832438,1747056641483,-158.7945,0.00013932,2]
[360832439,1747056641493,-400.0,0.00013932,2]
[360832440,1747056641502,-400.0,0.00013932,2]
[360832441,1747056641512,-400.0,0.00013932,2]
[360832442,1747056641521,-400.0,0.00013932,2]
[360832443,1747056641531,-491.22,0.00013932,2]
[360832444,1747056641542,-400.0,0.00013932,2]
[360832445,1747056641556,-400.0,0.00013932,2]
[360832446,1747056641566,-400.0,0.00013932,2]
[360832447,1747056641576,-400.0,0.00013932,2]
[360832448,1747056641592,-596.36,0.00013932,2]
[360832449,1747056641602,-400.0,0.00013932,2]
[360832450,1747056641611,-400.0,0.00013932,2]
[360832451,1747056641621,-400.0,0.00013932,2]
[360832452,1747056641631,-400.0,0.00013932,2]
[360832453,1747056641641,-400.0,0.00013932,2]
[360832454,1747056641651,-267.37447459,0.00013932,2]
[360832455,1747056641661,-400.0,0.00013932,2]
[360832456,1747056641673,-475.26,0.00013932,2]
[360832457,1747056641689,-400.0,0.00013932,2]
[360832458,1747056641705,-400.0,0.00013932,2]
[360832459,1747056641720,-400.0,0.00013932,2]
[360832460,1747056641732,-400.0,0.00013932,2]
[360832461,1747056641746,-157.75313895,0.00013932,2]
[360832462,1747056641760,-400.0,0.00013932,2]
[360832463,1747056641776,-403.72,0.00013932,2]
[360832464,1747056641796,-762.35,0.00013932,2]
[360832465,1747056641815,-400.0,0.00013932,2]
[360832466,1747056641828,-400.0,0.00013932,2]
[360832467,1747056641849,-400.0,0.00013932,2]
[360832468,1747056641861,-400.0,0.00013932,2]
[360832469,1747056641876,-455.29809624,0.00013932,2]
[360832470,1747056641891,-401.28,0.00013932,2]
[360832471,1747056641905,-400.0,0.00013932,2]
[360832472,1747056641919,-400.0,0.00013932,2]
[360832473,1747056641933,-400.0,0.00013932,2]
[360832474,1747056641948,-400.0,0.00013932,2]
[360832475,1747056641961,-156.724532,0.00013932,2]
[360832476,1747056641975,-400.0,0.00013932,2]
[360832477,1747056641989,-400.0,0.00013932,2]
[360832478,1747056642003,-400.0,0.00013932,2]
[360832479,1747056642017,-400.0,0.00013932,2]
[360832480,1747056642029,-400.0,0.00013932,2]
[360832481,1747056642043,-436.64,0.00013932,2]
[360832482,1747056642057,-400.0,0.00013932,2]
[360832483,1747056642070,-400.0,0.00013932,2]
[360832484,1747056642098,-413.6,0.00013932,2]
[360832485,1747056642112,-400.0,0.00013932,2]
[360832486,1747056642123,-400.0,0.00013932,2]
[360832487,1747056642136,-400.0,0.00013932,2]
[360832488,1747056642150,-400.0,0.00013932,2]
[360832489,1747056642167,-400.0,0.00013932,2]
[360832490,1747056642179,-400.0,0.00013932,2]
[360832491,1747056642191,-400.0,0.00013932,2]
[360832492,1747056642206,-930.51,0.00013932,2]
[360832493,1747056642220,-400.0,0.00013932,2]
[360832494,1747056642237,-2546.54,0.00013932,2]
[360832495,1747056642252,-400.0,0.00013932,2]
[360832496,1747056642265,-578.87,0.00013932,2]
[360832497,1747056642279,-202.06464,0.00013932,2]
[360832498,1747056642293,-400.0,0.00013932,2]
[360832499,1747056642306,-450.73011889,0.00013932,2]
[360832500,1747056642320,-4242.91,0.00013932,2]
[360832501,1747056642340,-202.06464,0.00013932,2]
[360832502,1747056642354,-542.62,0.00013932,2]
[360832503,1747056642370,-404.46331765,0.00013932,2]
[360832504,1747056642383,-400.0,0.00013932,2]
[360832505,1747056642397,-702.73,0.00013932,2]
[360832506,1747056642411,-400.0,0.00013932,2]
[360832507,1747056642425,-400.0,0.00013932,2]
[360832508,1747056642441,-407.0312261,0.00013932,2]
[360832509,1747056642455,-151.0,0.00013932,2]
[360832510,1747056642469,-400.0,0.00013932,2]
[360832511,1747056642483,-400.0,0.00013932,2]
[360832512,1747056642496,-400.0,0.00013932,2]
[360832513,1747056642510,-507.08394765,0.00013932,2]
[360832514,1747056642524,-157.77476,0.00013932,2]
[360832515,1747056642538,-400.0,0.00013932,2]
[360832516,1747056642552,-400.0,0.00013932,2]
[360832517,1747056642566,-842.86,0.00013932,2]
[360832518,1747056642581,-274.0922375,0.00013932,2]
[360832519,1747056642603,-151.0,0.00013932,2]
[360832520,1747056642616,-400.0,0.00013932,2]
[360832521,1747056642630,-400.0,0.00013932,2]
[360832522,1747056642643,-400.0,0.00013932,2]
[360832523,1747056642657,-151.0,0.00013932,2]
[360832524,1747056642671,-400.0,0.00013932,2]
[360832525,1747056642689,-411.24467006,0.00013932,2]
[360832526,1747056642702,-405.88099846,0.00013932,2]
[360832527,1747056642717,-408.73651772,0.00013932,2]
[360832528,1747056642730,-729.9,0.00013932,2]
[360832529,1747056642744,-404.11375213,0.00013932,2]
[360832530,1747056642756,-400.0,0.00013932,2]
[360832531,1747056642769,-536.29,0.00013932,2]
[360832532,1747056642782,-745.66,0.00013932,2]
[360832533,1747056642795,-482.33271829,0.00013932,2]
[360832534,1747056642808,-400.0,0.00013932,2]
[360832535,1747056642820,-1243.09,0.00013932,2]
[360832536,1747056642838,-151.0,0.00013932,2]
[360832537,1747056642850,-188.10783775,0.00013932,2]
[360832538,1747056642861,-401.11,0.00013932,2]
[360832539,1747056642874,-289.779826,0.00013932,2]
[360832540,1747056642886,-151.0,0.00013932,2]
[360832541,1747056642899,-152.656235,0.00013932,2]
[360832542,1747056642911,-289.779826,0.00013932,2]
[360832543,1747056642923,-400.0,0.00013932,2]
[360832544,1747056642936,-400.0,0.00013932,2]
[360832545,1747056642948,-400.0,0.00013932,2]
[360832546,1747056642960,-400.0,0.00013932,2]
[360832547,1747056642973,-151.0,0.00013932,2]
[360832548,1747056642987,-154.091666,0.00013932,2]
[360832549,1747056643001,-1386.12,0.00013932,2]
[360832550,1747056643015,-157.070108,0.00013932,2]
[360832551,1747056643029,-385.99682016,0.00013932,2]
[360832552,1747056643042,-151.0,0.00013932,2]
[360832553,1747056643056,-400.0,0.00013932,2]
[360832554,1747056643068,-400.0,0.00013932,2]
[360832555,1747056643082,-151.0,0.00013932,2]
[360832556,1747056643105,-400.0,0.00013932,2]
[360832557,1747056643119,-400.0,0.00013932,2]
[360832558,1747056643133,-400.0,0.00013932,2]
[360832559,1747056643146,-502.93710286,0.00013932,2]
[360832560,1747056643161,-332.68987438,0.00013932,2]
[360832561,1747056643176,-400.0,0.00013932,2]
[360832563,1747056643190,-400.0,0.00013932,2]
[360832565,1747056643204,-358.0,0.00013932,2]
[360832566,1747056643218,-400.0,0.00013932,2]
[360832567,1747056643232,-400.0,0.00013932,2]
[360832568,1747056643245,-400.0,0.00013932,2]
[360832569,1747056643259,-151.0,0.00013932,2]
[360832570,1747056643273,-151.0,0.00013932,2]
[360832571,1747056643286,-406.05671728,0.00013932,2]
[360832572,1747056643299,-408.34650322,0.00013932,2]
[360832573,1747056643312,-400.0,0.00013932,2]
[360832575,1747056643324,-400.0,0.00013932,2]
[360832578,1747056643343,-416.9,0.00013932,2]
[360832581,1747056643356,-412.2,0.00013932,2]
[360832583,1747056643369,-452.28036573,0.00013932,2]
[360832585,1747056643381,-150.0,0.00013932,2]
[360832588,1747056643392,-450.01,0.00013932,2]
[360832590,1747056643404,-400.0,0.00013932,2]
[360832592,1747056643417,-419.27247548,0.00013932,2]
[360832594,1747056643429,-452.28311947,0.00013932,2]
[360832596,1747056643440,-400.0,0.00013932,2]
[360832598,1747056643452,-401.57846309,0.00013932,2]
[360832600,1747056643464,-400.0,0.00013932,2]
[360832603,1747056643476,-400.7682439,0.00013932,2]
[360832605,1747056643488,-403.35305109,0.00013932,2]
[360832607,1747056643501,-400.0,0.00013932,2]
[360832608,1747056643513,-400.0,0.00013932,2]
[360832609,1747056643524,-404.34868588,0.00013932,2]
[360832610,1747056643536,-400.0,0.00013932,2]
[360832611,1747056643547,-345.35542226,0.00013932,2]
[360832612,1747056643560,-400.0,0.00013932,2]
[360832613,1747056643571,-400.0,0.00013932,2]
[360832614,1747056643588,-400.0,0.00013932,2]
[360832615,1747056643601,-400.0,0.00013932,2]
[360832616,1747056643613,-151.0,0.00013933,2]
[360832617,1747056643626,-151.0,0.00013933,2]
[360832618,1747056643638,-154.386339,0.00013933,2]
[360832619,1747056643651,-151.0,0.00013933,2]
[360832620,1747056643664,-275.626417,0.00013933,2]
[360832621,1747056643680,-400.0,0.00013933,2]
[360832622,1747056643693,-408.64,0.00013933,2]
[360832623,1747056643706,-400.0,0.00013933,2]
[360832624,1747056643720,-400.0,0.00013933,2]
[360832625,1747056643732,-151.0,0.00013933,2]
[360832626,1747056643745,-400.0,0.00013933,2]
[360832627,1747056643758,-151.0,0.00013933,2]
[360832628,1747056643768,-400.0,0.00013933,2]
[360832629,1747056644027,-151.0,0.00013933,2]
[360832630,1747056644062,-400.0,0.00013933,2]
[360832631,1747056644078,-151.0,0.00013933,2]
[360832632,1747056644097,-151.0,0.00013933,2]
[360832633,1747056644108,-151.0,0.00013933,2]
[360832634,1747056644119,-151.916722,0.00013933,2]
[360832635,1747056644131,-151.0,0.00013933,2]
[360832636,1747056644142,-151.0,0.00013933,2]
[360832637,1747056644153,-265.90393888,0.00013933,2]
[360832638,1747056644164,-444.65,0.00013933,2]
[360832639,1747056644174,-444.65,0.00013933,2]
[360832640,1747056644185,-409.0,0.00013933,2]
[360832641,1747056644197,-409.0,0.00013933,2]
[360832642,1747056644207,-565.37,0.00013933,2]
[360832643,1747056644218,-400.0,0.00013933,2]
[360832644,1747056644229,-565.37,0.00013933,2]
[360832645,1747056644239,-400.0,0.00013933,2]
[360832646,1747056644250,-984.47,0.00013933,2]
[360832647,1747056644260,-984.47,0.00013933,2]
[360832648,1747056644270,-400.0,0.00013933,2]
[360832649,1747056644280,-400.0,0.00013933,2]
[360832650,1747056644291,-400.0,0.00013933,2]
[360832651,1747056644302,-400.0,0.00013933,2]
[360832652,1747056644314,-1497.79,0.00013933,2]
[360832653,1747056644325,-1497.79,0.00013933,2]
[360832654,1747056644340,-400.0,0.00013933,2]
[360832655,1747056644351,-400.0,0.00013933,2]
[360832656,1747056644362,-400.0,0.00013933,2]
[360832657,1747056644373,-400.0,0.00013933,2]
[360832658,1747056644385,-400.0,0.00013933,2]
[360832659,1747056644396,-400.0,0.00013933,2]
[360832660,1747056644410,-400.0,0.00013933,2]
[360832661,1747056644422,-400.0,0.00013933,2]
[360832662,1747056644432,-400.0,0.00013933,2]
[360832663,1747056644443,-400.0,0.00013933,2]
[360832664,1747056644454,-400.0,0.00013933,2]
[360832665,1747056644465,-400.0,0.00013933,2]
[360832666,1747056644477,-400.0,0.00013933,2]
[360832667,1747056644488,-400.0,0.00013933,2]
[360832668,1747056644498,-400.0,0.00013933,2]
[360832669,1747056644509,-400.0,0.00013933,2]
[360832670,1747056644521,-400.0,0.00013933,2]
[360832671,1747056644532,-400.0,0.00013933,2]
[360832672,1747056644543,-400.0,0.00013933,2]
[360832673,1747056644553,-400.0,0.00013933,2]
[360832674,1747056644564,-400.0,0.00013933,2]
[360832675,1747056644574,-400.0,0.00013933,2]
[360832676,1747056644588,-292.53041975,0.00013933,2]
[360832677,1747056644602,-400.0,0.00013933,2]
[360832678,1747056644613,-400.0,0.00013933,2]
[360832679,1747056644625,-400.0,0.00013933,2]
[360832680,1747056644636,-400.0,0.00013933,2]
[360832681,1747056644646,-762.35,0.00013933,2]
[360832682,1747056644656,-762.35,0.00013933,2]
[360832683,1747056644667,-400.0,0.00013933,2]
[360832684,1747056644682,-400.0,0.00013933,2]
[360832685,1747056644692,-400.0,0.00013933,2]
[360832686,1747056644702,-400.0,0.00013933,2]
[360832687,1747056644712,-400.0,0.00013933,2]
[360832688,1747056644726,-400.0,0.00013933,2]
[360832689,1747056644736,-400.0,0.00013933,2]
[360832690,1747056644745,-400.0,0.00013933,2]
[360832691,1747056644755,-400.0,0.00013933,2]
[360832692,1747056644765,-400.0,0.00013933,2]
[360832693,1747056644776,-413.6,0.00013933,2]
[360832694,1747056644786,-400.0,0.00013933,2]
[360832695,1747056644796,-400.0,0.00013933,2]
[360832696,1747056644807,-400.0,0.00013933,2]
[360832697,1747056644818,-400.0,0.00013933,2]
[360832698,1747056644828,-413.6,0.00013933,2]
[360832699,1747056644843,-400.0,0.00013933,2]
[360832700,1747056644853,-400.0,0.00013933,2]
[360832701,1747056644863,-930.51,0.00013933,2]
[360832702,1747056644873,-930.51,0.00013933,2]
[360832703,1747056644883,-400.0,0.00013933,2]
[360832704,1747056644892,-400.0,0.00013933,2]
[360832705,1747056644902,-2546.54,0.00013933,2]
[360832706,1747056644912,-2546.54,0.00013933,2]
[360832707,1747056644921,-151.0,0.00013933,2]
[360832708,1747056644930,-400.0,0.00013933,2]
[360832709,1747056644940,-400.0,0.00013933,2]
[360832710,1747056644950,-4242.91,0.00013933,2]
[360832711,1747056644960,-4242.91,0.00013933,2]
[360832712,1747056644969,-542.62,0.00013933,2]
[360832713,1747056644979,-542.62,0.00013933,2]
[360832714,1747056644989,-702.73,0.00013933,2]
[360832715,1747056644999,-702.73,0.00013933,2]
[360832716,1747056645010,-151.0,0.00013933,2]
[360832717,1747056645022,-254.263358,0.00013933,2]
[360832718,1747056645033,-400.0,0.00013933,2]
[360832719,1747056645043,-400.0,0.00013933,2]
[360832720,1747056645054,-400.0,0.00013933,2]
[360832721,1747056645065,-2977.105043,0.00013933,2]
[360832722,1747056645075,-400.0,0.00013933,2]
[360832723,1747056645085,-842.86,0.00013933,2]
[360832724,1747056645100,-605.932521,0.00013933,2]
[360832725,1747056645109,-842.86,0.00013933,2]
[360832726,1747056645119,-605.932521,0.00013933,2]
[360832727,1747056645130,-400.0,0.00013933,2]
[360832728,1747056645139,-400.0,0.00013933,2]
[360832729,1747056645149,-729.9,0.00013933,2]
[360832730,1747056645158,-729.9,0.00013933,2]
[360832731,1747056645168,-400.0,0.00013933,2]
[360832732,1747056645178,-400.0,0.00013933,2]
[360832733,1747056645187,-157.505991,0.00013933,2]
[360832734,1747056645197,-745.66,0.00013933,2]
[360832735,1747056645206,-745.66,0.00013933,2]
[360832736,1747056645215,-152.074102,0.00013933,2]
[360832737,1747056645225,-1243.09,0.00013933,2]
[360832738,1747056645235,-1243.09,0.00013933,2]
[360832739,1747056645245,-401.11,0.00013933,2]
[360832740,1747056645254,-401.11,0.00013933,2]
[360832741,1747056645264,-289.779826,0.00013933,2]
[360832742,1747056645274,-289.779826,0.00013933,2]
[360832743,1747056645283,-172.38914726,0.00013933,2]
[360832744,1747056645293,-400.0,0.00013933,2]
[360832745,1747056645302,-400.0,0.00013933,2]
[360832746,1747056645312,-400.0,0.00013933,2]
[360832747,1747056645322,-400.0,0.00013933,2]
[360832748,1747056645332,-1386.12,0.00013933,2]
[360832749,1747056645347,-1386.12,0.00013933,2]
[360832750,1747056645356,-151.0,0.00013933,2]
[360832751,1747056645366,-400.0,0.00013933,2]
[360832752,1747056645375,-1954.09,0.00013933,2]
[360832753,1747056645385,-2064.71,0.00013933,2]
[360832754,1747056645394,-162.984459,0.00013934,2]
[360832755,1747056645403,-218.007163,0.00013934,2]
[360832756,1747056645413,-151.0,0.00013934,2]
[360832757,1747056645423,-3072.17457685,0.00013934,2]
[360832758,1747056645432,-498.17581532,0.00013956,2]
[360832759,1747056645441,-2533.66838921,0.00013961,2]
[360832760,1747056645451,-400.0,0.00013964,2]
[360832761,1747056645460,-2830.05,0.00013964,2]
[360832762,1747056645470,-1539.85,0.00013964,2]
[360832763,1747056645480,-400.0,0.00013964,2]
[360832764,1747056645489,-400.0,0.00013964,2]
[360832765,1747056645499,-689.72,0.00013964,2]
[360832766,1747056645508,-689.72,0.00013964,2]
[360832767,1747056645517,-400.0,0.00013964,2]